bitfinex-derivatives/quotes_SOLF0:USTF0_20250924
["timestamp","ask_amount","ask_price","bid_price","bid_amount"]
[1758689704368,6.2435,208.1,208.03,7.91]
[1758689704566,1.92,208.1,208.03,7.91]
[1758689704763,1.92,208.1,207.99,9.2101747]
[1758689704764,3.91427927,208.09,207.99,9.2101747]
[1758689704965,1.99425724,208.08,207.99,9.2101747]
[1758689705166,3.29443194,208.07,207.99,7.91]
[1758689705365,1.3001747,208.07,207.99,7.91]
[1758689705561,4.3243,208.06,207.99,7.91]
[1758689705771,4.3243,208.06,207.99,9.2101747]
[1758689705970,6.2438,208.09,207.99,9.2101747]
[1758689706174,3.2201747,208.09,207.99,7.91]
[1758689706367,1.9941334,208.08,207.99,9.2101747]
[1758689706571,3.2201747,208.09,207.99,9.2101747]
[1758689706770,1.99413883,208.08,207.99,9.2101747]
[1758689707070,3.2201747,208.09,207.99,9.2101747]
[1758689707265,1.99413883,208.08,207.99,9.2101747]
[1758689707468,14.57029411,208.08,207.99,9.2101747]
[1758689707669,3.2201747,208.09,207.99,9.2101747]
[1758689707967,4.324,208.07,207.99,9.2101747]
[1758689709270,4.324,208.07,208.01,1.3001747]
[1758689709469,4.324,208.07,208.01,9.2101747]
[1758689710273,1.3001747,208.12,208.01,9.2101747]
[1758689710469,1.99421745,208.11,208.01,9.2101747]
[1758689710771,1.99421745,208.1,208.01,9.2101747]
[1758689710973,1.3001747,208.12,208.01,9.2101747]
[1758689711572,20.99700176,208.13,208.04,7.91]
[1758689712774,4.3232,208.11,208.04,7.91]
[1758689712963,16.67410176,208.13,208.04,7.91]
[1758689713276,1.99443078,208.12,208.04,7.91]
[1758689713573,16.67410176,208.13,208.04,7.91]
[1758689713774,1.99444136,208.12,208.04,7.91]
[1758689713973,1.99444136,208.11,208.04,7.91]
[1758689714169,16.67410176,208.13,208.04,7.91]
[1758689714368,1.99444565,208.12,208.04,7.91]
[1758689714569,16.67410176,208.13,208.04,7.91]
[1758689714769,4.3234,208.1,208.04,7.91]
[1758689717179,4.323,208.13,208.04,9.2101747]
[1758689717384,1.99454003,208.12,208.04,9.2101747]
[1758689717680,4.323,208.13,208.04,9.2101747]
[1758689718167,1.3001747,208.12,208.04,9.2101747]
[1758689718373,1.99472094,208.11,208.04,7.91]
[1758689718573,1.99471818,208.1,208.04,7.91]
[1758689718882,4.3243,208.06,207.99,8.04]
[1758689719181,1.95,208.08,207.99,8.04]
[1758689719374,6.2738,208.08,207.99,8.04]
[1758689719570,6.2738,208.08,208.0,1.3001747]
[1758689719777,6.2738,208.08,208.01,8.04]
[1758689720681,4.3238,208.08,208.01,8.04]
[1758689721278,3.2501747,208.12,208.02,1.3001747]
[1758689721474,1.99597002,208.11,208.03,8.04]
[1758689721671,1.99597002,208.1,208.03,8.04]
[1758689721877,3.2501747,208.12,208.03,8.04]
[1758689722076,1.99597661,208.11,208.03,8.04]
[1758689722374,3.29615131,208.1,208.03,8.04]
[1758689722573,1.3001747,208.1,208.03,8.04]
[1758689722771,4.3236,208.09,208.03,8.04]
[1758689723179,113.62,208.16,207.97,188.7752]
[1758689723180,5.19406256,208.19,208.09,8.04]
[1758689723383,1.95,208.23,208.14,7.87]
[1758689723576,1.99706322,208.22,208.16,1.3001747]
[1758689723877,1.99706322,208.22,208.09,67.2567]
[1758689723878,1.3001747,208.27,208.17,7.87]
[1758689724077,1.3001747,208.24,208.13,7.87]
[1758689724274,14.077528,208.27,208.12,1.3001747]
[1758689724275,3.2201747,208.22,208.12,1.3001747]
[1758689724479,1.92,208.2,208.09,22.14993137]
[1758689724672,3.29725886,208.19,208.09,9.1701747]
[1758689724873,1.99708416,208.18,208.09,9.1701747]
[1758689725173,1.99708416,208.18,208.12,1.3001747]
[1758689725369,14.7275616,208.27,208.13,1.3001747]
[1758689725370,1.92,208.25,208.13,1.3001747]
[1758689725573,1.3001747,208.23,208.14,7.87]
[1758689725772,14.7275616,208.27,208.08,67.2592]
[1758689725773,1.99712226,208.22,208.16,7.87]
[1758689725979,1.92,208.29,208.17,1.3001747]
[1758689726170,1.99715727,208.28,208.18,7.87]
[1758689726376,1.99715727,208.27,208.21,7.87]
[1758689726577,1.99715727,208.26,208.2,7.87]
[1758689726775,1.99715727,208.25,208.18,7.87]
[1758689726981,1.99715727,208.24,208.18,7.87]
[1758689727277,7.5401747,208.27,208.18,7.87]
[1758689727481,1.9522992,208.26,208.18,7.87]
[1758689727685,1.9522992,208.25,208.18,7.87]
[1758689727871,1.3001747,208.24,208.14,7.87]
[1758689728074,1.9522992,208.23,208.14,7.87]
[1758689728271,1.9522992,208.22,208.14,7.87]
[1758689728477,73.447,208.25,208.14,7.87]
[1758689728678,3.2201747,208.22,208.14,7.87]
[1758689728873,1.3001747,208.19,208.09,9.1701747]
[1758689729473,1.95179887,208.18,208.09,7.87]
[1758689729687,1.3001747,208.16,208.08,363.4]
[1758689730380,1.3001747,208.16,208.08,371.27]
[1758689730573,1.3001747,208.19,208.09,11.58181586]
[1758689730779,1.95183465,208.18,208.09,7.87]
[1758689730974,1.3001747,208.19,208.09,7.87]
[1758689731179,1.9518347,208.18,208.09,7.87]
[1758689731376,1.95173212,208.17,208.09,7.87]
[1758689731581,1.3001747,208.17,208.09,7.87]
[1758689731782,68.5317747,208.17,208.08,363.4]
[1758689732087,1.92,208.15,208.08,363.4]
[1758689732486,1.92,208.15,208.08,371.27]
[1758689732883,4.3208,208.23,208.12,7.87]
[1758689733089,1.95174242,208.22,208.12,7.87]
[1758689733388,1.3001747,208.2,208.12,7.87]
[1758689733584,1.95174242,208.19,208.12,7.87]
[1758689733780,1.95174242,208.18,208.12,7.87]
[1758689733977,4.3216,208.19,208.12,7.87]
[1758689734183,1.95150319,208.18,208.12,7.87]
[1758689734382,5.15796757,208.19,208.12,7.87]
[1758689734589,4.322,208.17,208.12,7.87]
[1758689734782,1.92,208.16,208.11,1.3001747]
[1758689734981,3.87127473,208.16,208.11,1.3001747]
[1758689735183,4.3225,208.15,208.08,371.27]
[1758689735695,4.3225,208.15,208.09,1.3001747]
[1758689737980,4.3218,208.18,208.12,7.87]
[1758689738180,0.83636757,208.19,208.14,7.87]
[1758689738487,4.3212,208.21,208.15,1.3001747]
[1758689739388,4.3212,208.21,208.14,7.87]
[1758689740890,4.3216,208.19,208.13,1.3001747]
[1758689741191,4.3216,208.19,208.11,122.6201747]
[1758689741387,4.3216,208.19,208.11,1.3001747]
[1758689741588,4.322,208.17,208.11,1.3001747]
[1758689742592,4.322,208.17,208.1,7.87]
[1758689743788,4.3224,208.15,208.1,7.87]
[1758689744088,4.3224,208.15,208.09,131.20141905]
[1758689744294,4.3224,208.15,208.1,3.71075676]
[1758689744490,4.3219,208.18,208.1,7.87]
[1758689744992,69.1425,208.2,208.1,7.87]
[1758689745188,1.95184681,208.19,208.1,7.87]
[1758689745389,69.1425,208.2,208.1,7.87]
[1758689745588,1.95192406,208.19,208.1,7.87]
[1758689745789,4.3222,208.16,208.1,7.87]
[1758689751299,67.2445,208.13,208.05,7.87]
[1758689751598,1.92,208.12,208.05,7.87]
[1758689752398,4.3239,208.08,208.05,7.87]
[1758689752594,69.174,208.1,208.0,7.87]
[1758689752796,1.92,208.1,208.0,7.87]
[1758689753801,4.3241,208.07,208.0,7.87]
[1758689760107,67.2403,208.15,208.0,7.87]
[1758689760108,1.93,208.14,208.0,7.87]
[1758689761212,4.3232,208.12,208.02,4.3251]
[1758689761415,1.93,208.14,208.03,7.58]
[1758689762009,1.93,208.14,208.04,7.58]
[1758689762308,1.93,208.14,208.06,7.58]
[1758689762818,1.93,208.14,208.07,4.324]
[1758689763308,1.93,208.14,208.08,7.58]
[1758689763512,67.2447,208.13,208.01,3.98403711]
[1758689763817,67.2447,208.13,208.0,7.58]
[1758689763818,1.93,208.1,208.0,7.58]
[1758689765206,6.254,208.07,208.0,7.58]
[1758689765819,1.93,208.06,207.97,0.69406112]
[1758689767814,67.2715,208.05,207.97,0.69406112]
[1758689768015,1.93,208.04,207.97,0.69406112]
[1758689768710,4.3249,208.03,207.97,0.69406112]
[1758689769018,1.93,208.04,207.97,0.69406112]
[1758689769222,1.93,208.0,207.92,7.58]
[1758689769520,1.93,207.98,207.88,11.57805988]
[1758689770419,4.3268,207.94,207.88,7.58]
[1758689771614,4.3272,207.92,207.88,7.58]
[1758689772419,4.3272,207.92,207.85,3.99035481]
[1758689772620,1.93,207.93,207.85,3.99035481]
[1758689773314,1.93,207.93,207.84,7.58]
[1758689773722,6.257,207.93,207.84,7.58]
[1758689774019,2.03141905,208.0,207.86,7.82]
[1758689774219,2.03141905,208.0,207.89,7.82]
[1758689774715,1.94,207.98,207.89,7.82]
[1758689778626,4.3262,207.97,207.89,7.82]
[1758689778816,1.94,207.96,207.89,7.82]
[1758689780921,6.2663,207.96,207.89,7.82]
[1758689781622,4.3258,207.99,207.89,7.82]
[1758689784126,4.3261,207.97,207.89,7.82]
[1758689784421,4.3266,207.95,207.89,7.82]
[1758689785822,6.2671,207.93,207.89,7.82]
[1758689787323,1.94,207.94,207.82,7.95]
[1758689787627,69.2457,207.94,207.82,7.95]
[1758689787826,4.3276,207.9,207.82,7.95]
[1758689788628,4.328,207.88,207.82,7.95]
[1758689789330,1.94,207.91,207.82,7.95]
[1758689790632,4.3279,207.88,207.82,7.95]
[1758689791130,1.94,207.91,207.82,7.95]
[1758689791430,4.3275,207.9,207.82,7.95]
[1758689794333,1.94,207.91,207.83,4.3289]
[1758689794521,1.94,207.96,207.84,7.95]
[1758689794932,6.2664,207.96,207.84,7.95]
[1758689795929,6.2664,207.96,207.83,7.95]
[1758689796328,1.94,207.96,207.83,7.95]
[1758689796532,1.94,207.96,207.86,7.95]
[1758689796830,4.3265,207.95,207.86,7.95]
[1758689797330,1.94,207.96,207.86,7.95]
[1758689797529,67.2953,207.97,207.86,7.95]
[1758689797530,6.2671,207.93,207.86,7.95]
[1758689801838,4.3264,207.96,207.86,7.95]
[1758689802240,69.2235,208.01,207.86,7.95]
[1758689803336,4.326,207.97,207.89,7.95]
[1758689803938,4.3264,207.95,207.89,7.95]
[1758689804238,1.94,207.98,207.89,7.95]
[1758689804627,1.94,207.98,207.89,9.2528194]
[1758689805438,6.266,207.98,207.89,9.2528194]
[1758689807140,4.3254,208.01,207.93,7.95]
[1758689809141,4.3256,208.0,207.93,7.95]
[1758689809337,1.94,208.01,207.93,7.95]
[1758689809733,1.95824785,208.0,207.93,7.95]
[1758689809941,1.94,208.01,207.93,7.95]
[1758689810138,1.95824264,208.0,207.92,7.95]
[1758689810340,1.94,208.01,207.92,7.95]
[1758689811847,4.3254,208.0,207.92,7.95]
[1758689812152,1.96024725,207.99,207.92,7.95]
[1758689812350,1.94,207.98,207.92,7.95]
[1758689813850,4.3262,207.97,207.89,7.46]
[1758689814545,1.94,207.95,207.89,7.46]
[1758689815849,4.3269,207.93,207.89,7.46]
[1758689816846,6.2654,208.0,207.92,7.46]
[1758689817249,4.3254,208.0,207.92,7.46]
[1758689820351,67.2788,208.02,207.92,7.46]
[1758689820548,3.90075583,208.01,207.92,7.46]
[1758689820755,1.96075583,208.0,207.92,7.46]
[1758689820953,1.96075583,207.99,207.92,7.46]
[1758689821141,1.94,208.01,207.92,7.46]
[1758689821343,1.9606982,208.0,207.92,7.46]
[1758689821547,1.9606982,207.99,207.92,7.46]
[1758689821748,4.326,207.98,207.92,7.46]
[1758689822144,4.326,207.98,207.93,1.3028194]
[1758689822352,4.326,207.98,207.94,7.46]
[1758689822653,4.326,207.98,207.93,1.3028194]
[1758689823049,4.326,207.98,207.94,7.46]
[1758689823348,1.94,207.96,207.93,1.3028194]
[1758689824048,4.3262,207.97,207.93,8.7628194]
[1758689824454,4.3262,207.97,207.93,7.46]
[1758689824653,6.2662,207.97,207.93,7.46]
[1758689824952,4.3262,207.97,207.91,7.46]
[1758689825153,4.3256,207.99,207.91,7.46]
[1758689825554,1.94,208.0,207.93,1.3028194]
[1758689825748,1.96051479,207.99,207.93,8.7628194]
[1758689825947,1.94,208.05,207.93,8.7628194]
[1758689826153,1.9605283,208.04,207.99,1.3028194]
[1758689826456,14.58076533,208.07,208.0,7.46]
[1758689826651,3.2428194,208.09,207.99,1.3028194]
[1758689826652,1.960087,208.06,208.02,1.3028194]
[1758689826859,1.94,208.09,208.03,7.46]
[1758689827052,1.96009717,208.08,208.03,7.46]
[1758689827251,1.94,208.12,208.05,1.3028194]
[1758689827554,121.02,208.17,208.06,7.46]
[1758689827761,3.89894671,208.16,208.06,7.46]
[1758689828058,1.95894671,208.15,208.06,7.46]
[1758689828358,1.94,208.16,208.08,1.3028194]
[1758689828558,1.9567299,208.15,208.08,1.3028194]
[1758689828754,1.94,208.16,208.08,1.3028194]
[1758689829056,1.94,208.14,208.06,7.46]
[1758689829253,1.95672467,208.13,208.06,7.46]
[1758689829559,67.2531,208.1,208.02,7.46]
[1758689829754,1.94,208.08,207.98,1.3028194]
[1758689829953,1.94,208.08,207.99,7.46]
[1758689830858,3.2428194,208.12,208.02,7.46]
[1758689831461,1.95399817,208.11,208.02,7.46]
[1758689831662,3.2428194,208.12,208.02,7.46]
[1758689833559,4.3241,208.07,207.95,4.3263]
[1758689833760,3.2228194,208.09,207.99,8.04]
[1758689833964,1.3028194,208.09,207.99,8.04]
[1758689834261,1.3028194,208.12,208.02,8.04]
[1758689834659,4.3238,208.08,208.02,8.04]
[1758689837773,1.92,208.06,207.98,8.04]
[1758689838976,4.3246,208.04,207.98,8.04]
[1758689839174,68.5595194,208.09,207.98,8.04]
[1758689839574,67.2625,208.07,207.98,8.04]
[1758689839777,1.92,208.08,207.98,8.04]
[1758689840776,4.3244,208.05,207.98,8.04]
[1758689841376,1.3028194,208.06,207.98,8.04]
[1758689842374,1.3028194,208.06,207.97,8.04]
[1758689842580,1.3028194,208.07,207.97,8.04]
[1758689843176,1.3028194,208.07,207.97,9.3428194]
[1758689843376,4.3246,208.04,207.97,9.3428194]
[1758689845884,1.3028194,208.07,207.97,9.3428194]
[1758689845885,5.6270194,208.07,207.97,9.3428194]
[1758689846084,1.3028194,208.07,207.97,9.3428194]
[1758689846882,1.93,208.12,208.01,7.78]
[1758689847085,1.94614165,208.11,208.04,7.78]
[1758689847286,3.87614165,208.1,208.01,120.9]
[1758689847486,1.93,208.1,208.01,120.9]
[1758689847684,1.3028194,208.08,208.01,120.9]
[1758689848288,69.1925,208.07,207.98,7.78]
[1758689848488,1.3028194,208.05,207.98,7.78]
[1758689848985,4.3252,208.02,207.98,7.78]
[1758689849291,4.3252,208.02,207.96,120.9]
[1758689849491,4.3252,208.02,207.97,7.78]
[1758689849689,4.3252,208.02,207.95,7.78]
[1758689849890,1.3028194,208.02,207.95,7.78]
[1758689850393,4.3257,207.99,207.94,484.5]
[1758689850686,4.3257,207.99,207.95,7.78]
[1758689852091,4.3257,207.99,207.94,484.52]
[1758689852488,5.6280194,208.02,207.95,7.78]
[1758689852695,1.3028194,208.02,207.95,7.78]
[1758689853594,1.3028194,208.02,207.9,7.78]
[1758689853595,1.93,207.98,207.9,7.78]
[1758689853890,1.93,207.98,207.91,85.44]
[1758689854290,4.3261,207.97,207.91,85.44]
[1758689855094,1.93,207.98,207.9,7.78]
[1758689855396,4.3267,207.94,207.88,7.78]
[1758689856588,69.233,207.95,207.88,7.78]
[1758689856796,83.7705946,207.95,207.88,7.78]
[1758689857197,16.4675946,207.95,207.88,7.78]
[1758689858797,1.93,207.92,207.88,7.78]
[1758689860393,1.93,207.92,207.85,7.78]
[1758689861601,1.93,207.92,207.85,12.1086]
[1758689862001,1.93,207.92,207.85,7.78]
[1758689863595,4.3267,207.94,207.85,7.78]
[1758689864300,4.3267,207.94,207.85,9.0828194]
[1758689864605,4.3267,207.94,207.85,7.78]
[1758689865898,4.3271,207.92,207.85,7.78]
[1758689867896,1.93,207.94,207.86,4.3283]
[1758689868099,1.93,207.94,207.87,7.78]
[1758689868803,1.93,207.94,207.87,12.108]
[1758689870797,1.93,207.94,207.88,4.3277]
[1758689870997,1.93,207.98,207.87,7.78]
[1758689872802,1.93,207.98,207.89,4.3275]
[1758689873004,16.29966607,207.98,207.9,7.78]
[1758689873193,6.256,207.98,207.9,7.78]
[1758689874094,3.9663826,208.05,207.9,7.78]
[1758689874402,3.87186683,208.04,207.9,7.78]
[1758689874706,4.325,208.02,207.93,4.3267]
[1758689874906,20.61613599,208.02,207.94,7.94]
[1758689875100,6.255,208.02,207.94,7.94]
[1758689879000,1.93,208.01,207.94,7.94]
[1758689879206,1.93,208.01,207.9,7.94]
[1758689880908,4.3257,207.99,207.9,12.2673]
[1758689881497,1.93,208.01,207.92,7.94]
[1758689882110,4.3255,208.0,207.92,7.94]
[1758689882302,1.93,208.01,207.92,7.94]
[1758689882809,4.326,207.98,207.92,7.94]
[1758689883610,1.93,208.01,207.92,7.94]
[1758689884512,1.93,208.01,207.92,4.3271]
[1758689884806,1.93,208.01,207.93,7.94]
[1758689885512,1.93,208.0,207.93,7.94]
[1758689885714,1.93,207.99,207.93,7.94]
[1758689886813,1.93,207.96,207.87,7.94]
[1758689887117,2.02473664,207.95,207.87,7.94]
[1758689887311,1.93,207.96,207.87,7.94]
[1758689887500,4.3269,207.94,207.87,7.94]
[1758689891516,1.93,207.96,207.87,7.94]
[1758689891718,2.02624539,207.95,207.87,7.94]
[1758689891914,2.02624539,207.94,207.87,7.94]
[1758689892113,1.93,207.96,207.87,7.94]
[1758689892318,2.02624833,207.95,207.87,7.94]
[1758689892514,2.02624833,207.94,207.87,7.94]
[1758689892711,1.93,207.96,207.87,7.94]
[1758689892906,1.93,207.92,207.87,7.94]
[1758689893112,1.93,207.92,207.83,7.94]
[1758689894217,4.3273,207.91,207.83,7.94]
[1758689895510,5.37626058,208.03,207.92,8.0]
[1758689895713,9.6369096,208.06,207.92,8.0]
[1758689895714,3.96843751,208.02,207.92,8.0]
[1758689896015,1.94,208.0,207.92,8.0]
[1758689896815,4.3257,207.99,207.92,8.0]
[1758689898519,1.94,207.96,207.92,8.0]
[1758689898818,1.94,207.96,207.86,8.31702017]
[1758689898819,1.94,207.99,207.87,8.0]
[1758689899016,4.3264,207.96,207.87,8.0]
[1758689899216,6.2664,207.96,207.87,8.0]
[1758689901332,1.94,208.01,207.88,8.0]
[1758689901927,4.3257,207.99,207.88,8.0]
[1758689903326,4.3257,207.99,207.92,8.0]
[1758689904731,1.94,208.01,207.92,8.0]
[1758689904932,1.94,208.01,207.94,7.43]
[1758689906231,1.92,208.06,207.94,7.43]
[1758689906628,1.92,208.06,207.94,11.7565]
[1758689906825,1.92,208.06,207.94,7.43]
[1758689907537,1.92,208.03,207.94,7.43]
[1758689907732,16.61347074,208.03,207.94,7.43]
[1758689908334,16.61347074,208.03,207.94,11.7566]
[1758689909539,16.61347074,208.03,207.95,7.43]
[1758689910438,4.3245,208.05,207.95,7.43]
[1758689911737,18.49042472,208.05,207.95,7.43]
[1758689912838,4.3249,208.03,207.95,7.43]
[1758689922339,4.3249,208.03,207.91,69.3502826]
[1758689922340,67.2757,208.03,207.89,7.43]
[1758689922839,1.92,208.02,207.89,7.43]
[1758689923246,4.3258,207.99,207.89,7.43]
[1758689924846,4.3258,207.99,207.91,7.43]
[1758689926554,4.3258,207.99,207.91,8.73270134]
[1758689929350,1.92,208.0,207.91,8.73270134]
[1758689929548,1.92,208.0,207.91,5.62980134]
[1758689929746,5.62790134,208.01,207.92,7.43]
[1758689930753,5.62790134,208.01,207.93,4.3269]
[1758689931148,5.62790134,208.01,207.94,7.43]
[1758689933448,1.92,208.03,207.96,7.46]
[1758689933648,1.92,208.07,207.96,7.46]
[1758689933955,123.88270134,208.1,208.01,7.46]
[1758689934656,128.20620134,208.1,208.02,7.46]
[1758689935354,122.58,208.1,208.03,7.46]
[1758689935551,1.30270134,208.12,208.03,7.46]
[1758689935743,1.30270134,208.12,208.04,1.30270134]
[1758689935949,16.29804247,208.13,208.04,5.62710134]
[1758689936353,1.30270134,208.12,208.03,7.46]
[1758689936552,1.92,208.09,208.03,7.46]
[1758689937354,14.37804247,208.13,208.03,8.76270134]
[1758689937551,3.22270134,208.14,208.03,8.76270134]
[1758689938355,17.66857076,208.17,208.08,7.46]
[1758689938860,0.83649825,208.15,208.08,7.46]
[1758689939359,6.46159959,208.15,208.08,7.46]
[1758689940055,1.92,208.12,208.08,7.46]
[1758689940353,2.75649825,208.15,208.06,7.46]
[1758689941055,2.75649825,208.15,208.07,1.30270134]
[1758689941455,0.83649825,208.15,208.09,1.30270134]
[1758689941656,0.83649825,208.15,208.08,7.46]
[1758689941657,1.30270134,208.21,208.12,7.46]
[1758689941951,74.8958096,208.27,208.08,67.259]
[1758689941952,0.83643793,208.2,208.14,7.46]
[1758689943355,7.07783793,208.2,208.14,7.46]
[1758689944855,6.2418,208.18,208.09,8.76270134]
[1758689945055,1.92,208.15,208.09,7.46]
[1758689945357,3.22270134,208.15,208.09,7.46]
[1758689947059,1.92,208.19,208.1,1.30270134]
[1758689947361,1.92,208.19,208.11,7.46]
[1758689947964,1.92,208.19,208.12,1.30270134]
[1758689948166,5.15783793,208.2,208.13,7.46]
[1758689948667,0.83643793,208.2,208.13,7.46]
[1758689948854,121.86270134,208.25,208.16,7.46]
[1758689949059,0.83623693,208.24,208.16,7.46]
[1758689950868,5.15673693,208.24,208.16,7.46]
[1758689951461,4.3209,208.22,208.16,7.46]
[1758689951868,2.75623693,208.24,208.16,7.46]
[1758689955476,4.3207,208.23,208.16,7.46]
[1758689956572,2.75623693,208.24,208.16,7.46]
[1758689957570,7.07673693,208.24,208.16,7.46]
[1758689958769,5.15673693,208.24,208.16,7.46]
[1758689959069,0.83623693,208.24,208.16,7.46]
[1758689959272,0.83623693,208.24,208.19,7.73]
[1758689959577,0.83623693,208.24,208.13,187.7418]
[1758689959578,0.83623693,208.24,208.21,1.30270134]
[1758689960170,6.2198,208.28,208.22,7.73]
[1758689960573,0.83602599,208.28,208.22,7.73]
[1758689960873,0.83602599,208.28,208.25,7.73]
[1758689961175,4.3192,208.31,208.25,7.73]
[1758689961880,0.83588543,208.32,208.25,7.73]
[1758689963471,0.83588543,208.32,208.27,1.30270134]
[1758689963780,4.3185,208.34,208.28,7.47]
[1758689963969,0.83576498,208.35,208.28,7.47]
[1758689964481,0.83576498,208.35,208.29,7.47]
[1758689965273,124.7976,208.38,208.31,7.47]
[1758689965472,5.15321446,208.38,208.31,7.47]
[1758689965880,0.78027455,208.41,208.31,7.47]
[1758689966074,0.78027455,208.41,208.33,7.47]
[1758689966270,1.61580876,208.41,208.33,7.47]
[1758689966873,1.91,208.4,208.33,7.47]
[1758689967273,3.21270134,208.4,208.33,7.47]
[1758689967979,4.3176,208.38,208.31,7.47]
[1758689970280,4.3176,208.38,208.34,7.47]
[1758689971681,4.318,208.36,208.34,7.47]
[1758689971986,6.228,208.36,208.33,8.77270134]
[1758689972184,6.228,208.36,208.33,7.47]
[1758689972680,4.318,208.36,208.33,7.47]
[1758689973273,6.2285,208.34,208.31,7.47]
[1758689973583,0.83553421,208.41,208.34,7.47]
[1758689973781,2.74553421,208.41,208.34,7.47]
[1758689974176,7.06243421,208.41,208.34,7.47]
[1758689974376,2.74553421,208.41,208.34,7.47]
[1758689975884,6.2274,208.39,208.34,7.47]
[1758689976076,69.0674,208.4,208.33,1.30270134]
[1758689976277,69.0674,208.4,208.3,8.77270134]
[1758689976278,69.0728,208.38,208.3,8.77270134]
[1758689976482,4.3186,208.33,208.3,8.77270134]
[1758689978187,1.91,208.36,208.23,30.5006]
[1758689978188,6.2282,208.36,208.29,7.47]
[1758689978678,1.91,208.36,208.29,7.47]
[1758689979879,4.3184,208.34,208.29,7.47]
[1758689980073,4.3184,208.34,208.28,1.30270134]
[1758689980479,4.3193,208.3,208.28,7.47]
[1758689980674,6.2293,208.3,208.26,7.47]
[1758689981680,4.3196,208.28,208.24,7.47]
[1758689982287,4.3196,208.28,208.23,1.30270134]
[1758689982485,4.3196,208.28,208.24,7.47]
[1758689982881,4.3196,208.28,208.23,1.30270134]
[1758689983076,4.3196,208.28,208.24,7.47]
[1758689983277,4.3196,208.28,208.23,1.30270134]
[1758689983482,4.3196,208.28,208.24,7.47]
[1758689983686,1.91,208.21,208.13,8.77270134]
[1758689983886,1.91,208.21,208.13,7.47]
[1758689983887,1.30270134,208.2,208.13,7.47]
[1758689984990,5.62400134,208.2,208.13,7.47]
[1758689985190,1.91,208.21,208.13,7.47]
[1758689985380,6.2312,208.21,208.13,7.47]
[1758689985786,1.30270134,208.2,208.13,7.47]
[1758689986187,4.3215,208.19,208.13,7.47]
[1758689986584,1.30270134,208.2,208.13,7.47]
[1758689986789,15.51889629,208.2,208.13,7.47]
[1758689987091,1.30270134,208.2,208.13,7.47]
[1758689987393,5.62410134,208.2,208.13,7.47]
[1758689988692,4.3207,208.23,208.13,7.47]
[1758689989992,4.3207,208.23,208.01,7.47]
[1758689989993,67.2429,208.14,208.01,7.47]
[1758689990193,1.91,208.16,208.01,7.47]
[1758689990395,1.91,208.16,208.02,7.47]
[1758689990592,2.03149304,208.18,208.03,67.2752]
[1758689990790,2.03149304,208.18,208.04,7.47]
[1758689991187,6.2316,208.19,208.06,7.47]
[1758689991385,44.06,208.22,208.06,7.47]
[1758689991792,1.91,208.2,208.08,7.47]
[1758689992190,4.3222,208.16,208.08,7.47]
[1758689993197,1.91,208.17,208.08,7.47]
[1758689994096,1.92,208.22,208.09,4.3236]
[1758689994291,1.92,208.22,208.1,7.43]